[Event "Gibraltar Amateurs A 2019"]
[Site "Caleta"]
[Date "2019.01.21"]
[Round "1"]
[White "Portman, Carl S"]
[Black "Bussmann, John"]
[Result "1/2-1/2"]
[ECO "B73"]
[WhiteElo "1884"]
[BlackElo "1671"]
[Annotator "NA"]
[PlyCount "83"]
[EventDate "2019.01.21"]
[EventType "swiss"]
[EventCountry "GGB"]
[SourceTitle "playchess.com"]
[Source "ChessBase"]
[SourceQuality "1"]
[TimeControl "6600+10"]

1. e4 {[%emt 0:00:00]} c5 {[%emt 0:00:12]} 2. Nf3 {[%emt 0:00:09]} g6 {[%emt 0:00:29]} 3. d4 {[%emt 0:02:47]} cxd4 {[%emt 0:00:07]} 4. Nxd4 {[%emt 0:00:14]} Bg7 {[%emt 0:00:16]} 5. Nc3 {[%emt 0:00:13]} Nc6 {[%emt 0:00:24]} 6. Be3 {[%emt 0:01:10]} Nf6 {[%emt 0:07:57]} 7. Be2 {[%emt 0:02:47]} d6 {[%emt 0:04:28]} 8. O-O {[%emt 0:00:42]} Bd7 {[%emt 0:01:38]} 9. f4 {[%emt 0:03:35]} O-O {[%emt 0:10:49]} 10. Kh1 {[%emt 0:06:46]} Nxd4 {[%emt 0:03:25]} 11. Bxd4 {[%emt 0:01:35]} Bc6 {[%emt 0:00:26] B73: Sicilian Dragon: Classical System without 9 Nb3} 12. Bf3 {[%emt 0:01:58]} Nd7 {[%emt 0:12:31]} (12... Rc8 13. Re1 Re8 14. Nd5 e5 15. fxe5 dxe5 16. Nxf6+ Bxf6 17. Be3 Qa5 18. Qe2 Bh4 19. g3 {0-1 (35) Munguntuul,B (2438)-Li,C (2680) Caleta 2014}) 13. Bxg7 {[%emt 0:07:11]} Kxg7 {[%emt 0:00:05]} 14. Qd4+ {[%emt 0:00:43] LiveBook: 3 Games} Kg8 {[%emt 0:00:25]} 15. Nd5 {[%emt 0:12:27]} e5 {[%emt 0:09:40]} 16. fxe5 $146 {[%emt 0:07:01]} ({Predecessor:} 16. Qb4 Bxd5 17. exd5 Qc7 18. c4 exf4 19. Be2 {0-1 (53) Przybylski,W (2373)-Lapshun,Y (2479) Banyoles 2007}) 16... dxe5 {[%emt 0:05:12]} 17. Qb4 {[%emt 0:08:50]} Bxd5 {[%emt 0:05:17]} 18. exd5 {[%emt 0:00:10]} Rb8 {[%emt 0:02:14]} 19. Rae1 {[%emt 0:02:15]} f5 {[%emt 0:01:04]} 20. d6 {[%emt 0:06:37]} e4 {[%emt 0:01:17]} 21. Be2 {[%emt 0:04:18]} Rf6 {[%emt 0:08:38]} 22. g4 {[%emt 0:05:33]} Ne5 {[%emt 0:03:32]} 23. gxf5 {[%emt 0:01:08]} gxf5 {[%emt 0:01:47]} 24. Qb3+ {[%emt 0:04:10]} Kh8 {[%emt 0:04:39]} 25. Qd5 {[%emt 0:00:09]} Qxd6 {[%emt 0:03:21]} 26. Qxd6 {[%emt 0:00:20]} Rxd6 {[%emt 0:00:06]} 27. Rxf5 {[%emt 0:00:09]} Ng6 {[%emt 0:02:01]} 28. Bh5 $11 {[%emt 0:08:07]} Re8 {[%emt 0:03:17]} 29. Bxg6 {[%emt 0:06:25]} hxg6 {[%emt 0:00:04]} 30. Rf2 {[%emt 0:00:42]} Kg7 {[%emt 0:00:47]} 31. Rfe2 {[%emt 0:00:10]} Rde6 {[%emt 0:00:35]} 32. Kg2 {[%emt 0:01:07]} g5 {[%emt 0:01:09]} 33. Kg3 {[%emt 0:02:15]} Kg6 {[%emt 0:01:14]} 34. Kg4 {[%emt 0:00:21]} e3 {[%emt 0:07:30]} 35. Kf3 {[%emt 0:02:06]} Rf6+ {[%emt 0:00:59]} 36. Kg3 {[%emt 0:00:10]} Rfe6 {[%emt 0:00:54]} 37. c4 {[%emt 0:00:44]} a5 {[%emt 0:01:17]} 38. b3 {[%emt 0:00:13]} Kf5 {[%emt 0:01:16]} 39. a3 {[%emt 0:00:22]} Re4 {[%emt 0:01:07]} 40. h3 {[%emt 0:00:39]} R8e5 {[%emt 0:00:40]} 41. Kf3 {[%emt 0:02:00]} Rf4+ {[%emt 0:00:13]} 42. Kg3 {[%emt 0:00:07]} 1/2-1/2

[Event "Gibraltar Amateurs A 2019"]
[Site "Caleta"]
[Date "2019.01.21"]
[Round "1"]
[White "Leimeister, Winfried"]
[Black "Guardia Bencomo, Tomas"]
[Result "1-0"]
[ECO "B50"]
[WhiteElo "1870"]
[BlackElo "1664"]
[Annotator "NA"]
[PlyCount "73"]
[EventDate "2019.01.21"]
[EventType "swiss"]
[EventCountry "GGB"]
[SourceTitle "playchess.com"]
[Source "ChessBase"]
[SourceQuality "1"]
[TimeControl "6600+10"]

1. e4 {[%emt 0:00:00]} c5 {[%emt 0:00:00]} 2. Nf3 {[%emt 0:00:05]} d6 {[%emt 0:00:24]} 3. g3 {[%emt 0:00:15]} Nc6 {[%emt 0:01:27]} 4. c3 {[%emt 0:00:32]} Nf6 {[%emt 0:01:04]} 5. d3 {[%emt 0:00:21]} e5 {[%emt 0:01:35]} 6. Bg2 {[%emt 0:00:29]} Be7 {[%emt 0:00:16]} 7. O-O {[%emt 0:01:19]} O-O {[%emt 0:00:31]} 8. Nbd2 {[%emt 0:02:12]} Rb8 {[%emt 0:00:40] B50: Sicilian: 2...d6, Miscellaneous} (8... Re8 9. a3 Rb8 10. b4 b5 11. d4 cxd4 12. cxd4 exd4 13. Bb2 Qb6 14. Nb3 Nxe4 15. Nfxd4 Bf6 16. Nxc6 Bxb2 17. Nxb8 Bxa1 18. Qxa1 Qxb8 {0-1 (48) Neverov,V (2489)-Akopian,V (2705) Legnica 2013}) 9. a4 {[%emt 0:02:39]} b6 $146 {[%emt 0:04:22]} ({Predecessor:} 9... Bg4 10. Nc4 Qc7 11. Ne3 Be6 12. Nd2 a5 13. f4 exf4 14. gxf4 Rfd8 15. Nf3 Ne8 16. d4 cxd4 17. cxd4 {1-0 (36) Zini,J (2093)-Staron,D (1834) Caioba 2016}) 10. Nc4 {[%emt 0:02:59]} Be6 {[%emt 0:03:32]} 11. Ne3 {[%emt 0:06:43]} d5 {[%emt 0:10:19]} 12. Ng5 {[%emt 0:06:35]} d4 {[%emt 0:08:14]} 13. Nxe6 {[%emt 0:09:07]} fxe6 {[%emt 0:00:13]} 14. Nc2 {[%emt 0:12:49]} Qe8 {[%emt 0:02:51]} 15. cxd4 {[%emt 0:04:07]} cxd4 {[%emt 0:03:12]} 16. Bd2 {[%emt 0:00:53]} Nd7 {[%emt 0:03:33]} 17. b4 {[%emt 0:02:29]} b5 {[%emt 0:04:00]} 18. a5 {[%emt 0:13:27]} Bd6 {[%emt 0:07:42]} 19. Rb1 {[%emt 0:00:58]} Rc8 {[%emt 0:00:26]} 20. Na3 {[%emt 0:01:20]} a6 {[%emt 0:07:13]} 21. Bh3 {[%emt 0:09:37]} Nxa5 {[%emt 0:09:06]} 22. Nxb5 {[%emt 0:02:45]} (22. bxa5 $18 Nc5 23. Bb4) 22... Nb7 {[%emt 0:00:28]} 23. Na3 {[%emt 0:09:20]} Kh8 {[%emt 0:03:49]} 24. Nc4 {[%emt 0:00:54]} Qf7 {[%emt 0:06:16]} 25. Qb3 {[%emt 0:05:33]} Bb8 {[%emt 0:03:00]} 26. Ra1 {[%emt 0:00:32]} Rc6 {[%emt 0:01:21]} 27. Bg2 {[%emt 0:00:06]} Rfc8 {[%emt 0:02:43]} 28. Ra2 {[%emt 0:00:41]} Nd6 {[%emt 0:01:29]} 29. Rc2 {[%emt 0:04:42]} Nxc4 {[%emt 0:02:58]} 30. dxc4 {[%emt 0:00:24]} Ba7 {[%emt 0:01:10]} 31. c5 {[%emt 0:02:46]} Nf8 $18 {[%emt 0:06:41]} 32. Ra2 {[%emt 0:00:48]} Qb7 {[%emt 0:00:29]} 33. Qa4 {[%emt 0:00:34]} Nd7 {[%emt 0:01:42]} 34. f4 {[%emt 0:02:23]} g6 {[%emt 0:01:42]} 35. f5 {[%emt 0:00:16]} exf5 {[%emt 0:01:11]} 36. exf5 {[%emt 0:00:04]} gxf5 {[%emt 0:02:25]} 37. b5 {[%emt 0:00:14]} 1-0

[Event "Gibraltar Amateurs A 2019"]
[Site "Caleta"]
[Date "2019.01.21"]
[Round "1"]
[White "Bryant, Richard B E"]
[Black "Krause, Marianne"]
[Result "1-0"]
[ECO "B23"]
[WhiteElo "1862"]
[BlackElo "1637"]
[Annotator "NA RC"]
[PlyCount "105"]
[EventDate "2019.01.21"]
[EventType "swiss"]
[EventCountry "GGB"]
[SourceTitle "playchess.com"]
[Source "ChessBase"]
[SourceQuality "1"]
[TimeControl "6600+10"]

1. e4 {[%emt 0:00:00]} c5 {[%emt 0:00:00]} 2. Nc3 {[%emt 0:00:00]} e6 {[%emt 0:00:10]} 3. f4 {[%emt 0:00:19]} g6 {[%emt 0:00:08]} 4. Nf3 {[%emt 0:00:22]} Bg7 {[%emt 0:00:45]} 5. g3 {[%emt 0:02:38] B23: Closed Sicilian: Lines without g3} Ne7 {[%emt 0:02:28]} 6. Bg2 {[%emt 0:00:25]} d6 {[%emt 0:01:23]} 7. Ne2 {[%emt 0:01:04]} Nbc6 {[%emt 0:00:39]} 8. c3 {[%emt 0:00:22]} (8. O-O O-O 9. c3 f5 10. d3 b6 11. Be3 Qd7 12. h3 Bb7 13. a3 Rae8 14. Qa4 Ne5 15. Qxd7 Nxd7 16. Ng5 Nc8 17. Rfe1 h6 18. Nf3 c4 19. dxc4 Bxe4 {½-½ (51) Ivanchuk,V (2710)-Gelfand,B (2685) Munich 1994}) 8... Rb8 {[%emt 0:02:08]} 9. O-O {[%emt 0:00:51]} b5 $146 {[%emt 0:02:29]} ({Predecessor:} 9... f5 10. d3 O-O 11. Be3 b6 12. Bf2 h6 13. exf5 gxf5 14. d4 Qc7 15. Re1 a6 16. h3 Kh8 17. Nh4 cxd4 18. Nxd4 Nd8 {½-½ (47) Rogge,R-Kauch,M Ruhrgebiet 1997}) 10. d4 {[%emt 0:02:52]} cxd4 {[%emt 0:04:49]} 11. cxd4 {[%emt 0:00:00]} d5 {[%emt 0:01:57]} 12. e5 {[%emt 0:00:00]} O-O {[%emt 0:02:34]} 13. g4 {[%emt 0:00:26]} a5 {[%emt 0:06:07]} 14. Ng3 {[%emt 0:02:00]} Qb6 {[%emt 0:05:30]} 15. Kh1 {[%emt 0:01:53]} Bd7 {[%emt 0:05:23]} 16. h4 {[%emt 0:01:29]} f5 {[%emt 0:03:23]} 17. g5 {[%emt 0:00:37]} Rfc8 {[%emt 0:04:17]} 18. Be3 {[%emt 0:01:08]} Na7 {[%emt 0:02:33]} 19. Ne1 {[%emt 0:03:07]} b4 {[%emt 0:08:12]} 20. Nd3 {[%emt 0:01:28]} Bb5 {[%emt 0:03:10]} 21. Rf3 {[%emt 0:00:27]} Kf7 {[%emt 0:03:45]} 22. Nc5 {[%emt 0:01:11]} Rh8 {[%emt 0:07:07]} 23. Bf1 {[%emt 0:00:39]} h6 {[%emt 0:03:55]} 24. Kg1 {[%emt 0:00:22]} hxg5 {[%emt 0:00:32]} 25. hxg5 {[%emt 0:00:08]} Qd8 {[%emt 0:01:52]} 26. a4 {[%emt 0:02:06]} Bxf1 {[%emt 0:01:57]} 27. Nxf1 {[%emt 0:00:27]} Rh7 {[%emt 0:02:33]} 28. Qd3 {[%emt 0:01:19]} Bf8 {[%emt 0:04:51]} 29. Rc1 {[%emt 0:01:28]} Rb6 {[%emt 0:03:15]} 30. Bf2 {[%emt 0:02:26]} Nec6 {[%emt 0:03:57]} 31. Rh3 {[%emt 0:00:49]} Rxh3 {[%emt 0:01:24]} 32. Qxh3 {[%emt 0:00:33]} Bg7 {[%emt 0:00:12] [#]} (32... Qc8 $16) 33. Nxe6 $1 {[%emt 0:05:05]} Kxe6 {[%emt 0:00:45]} 34. Qh7 {[%emt 0:00:07]} Bxe5 $2 {[%emt 0:02:09]} (34... Ne7) 35. Qxg6+ {[%emt 0:00:31]} Bf6 {[%emt 0:00:36]} 36. Re1+ {[%emt 0:00:22]} Kd7 {[%emt 0:00:35]} 37. Qxf5+ {[%emt 0:00:59]} Kc7 {[%emt 0:00:14]} 38. Qxf6 {[%emt 0:01:14]} Qxf6 {[%emt 0:01:49]} 39. gxf6 {[%emt 0:00:08]} Rb8 {[%emt 0:00:56]} 40. Rd1 {[%emt 0:04:34]} Rf8 {[%emt 0:00:32]} 41. Bh4 {[%emt 0:00:26]} Nc8 {[%emt 0:00:27]} 42. Ne3 {[%emt 0:00:46]} Kd6 {[%emt 0:00:52]} 43. Nf5+ {[%emt 0:03:41]} Ke6 {[%emt 0:01:20]} 44. Ne7 {[%emt 0:00:29]} N8xe7 $18 {[%emt 0:01:15]} 45. fxe7 {[%emt 0:00:16]} Re8 {[%emt 0:00:23]} 46. Kf2 {[%emt 0:00:48]} Kf7 {[%emt 0:00:57]} 47. Rc1 {[%emt 0:02:22]} Nxd4 {[%emt 0:02:44]} 48. Rc5 {[%emt 0:03:01]} Nf5 {[%emt 0:00:07]} 49. Bg5 {[%emt 0:00:15]} Nxe7 {[%emt 0:02:02]} 50. Rxa5 {[%emt 0:01:36]} Ke6 {[%emt 0:02:18]} 51. Ra6+ {[%emt 0:01:39]} Kd7 {[%emt 0:00:48]} 52. Ra7+ {[%emt 0:00:06]} Ke6 {[%emt 0:00:34]} 53. Rxe7+ {[%emt 0:00:28]} 1-0

[Event "Gibraltar Amateurs A 2019"]
[Site "Caleta"]
[Date "2019.01.21"]
[Round "1"]
[White "Johansson, Daniel"]
[Black "Khoo-Thwe, Louis"]
[Result "1/2-1/2"]
[ECO "C52"]
[WhiteElo "1859"]
[BlackElo "1617"]
[Annotator "NA"]
[PlyCount "140"]
[EventDate "2019.01.21"]
[EventType "swiss"]
[EventCountry "GGB"]
[SourceTitle "playchess.com"]
[Source "ChessBase"]
[SourceQuality "1"]
[TimeControl "6600+10"]

1. e4 {[%emt 0:47:43]} e5 {[%emt 0:00:10]} 2. Nf3 {[%emt 0:00:18]} Nc6 {[%emt 0:00:09]} 3. Bc4 {[%emt 0:00:15]} Bc5 {[%emt 0:00:10]} 4. b4 {[%emt 0:00:16]} Bxb4 {[%emt 0:00:08]} 5. c3 {[%emt 0:00:22]} Ba5 {[%emt 0:00:07]} 6. d4 {[%emt 0:00:54]} exd4 {[%emt 0:00:36]} 7. O-O {[%emt 0:00:38]} dxc3 {[%emt 0:01:31]} 8. Qb3 {[%emt 0:00:54] C52: Evans Gambit Accepted: 5 c3 Ba5} Qe7 {[%emt 0:02:10]} 9. Bg5 {[%emt 0:08:17]} (9. Nxc3 Bxc3 10. Qxc3 Nf6 11. Ba3 d6 12. Rae1 Ne5 13. Nxe5 Qxe5 14. Qc1 Ng4 {½-½ (27) Zelbel,P (2387)-Harika,D (2503) Vlissingen 2012}) 9... Nf6 {[%emt 0:04:55]} 10. Nxc3 {[%emt 0:18:48]} Bxc3 {[%emt 0:04:11]} 11. Qxc3 {[%emt 0:00:14]} d6 {[%emt 0:01:07]} 12. Rfe1 {[%emt 0:10:33]} Ne5 {[%emt 0:01:34]} 13. Nd4 {[%emt 0:08:32]} O-O $146 {[%emt 0:04:36]} ({Predecessor:} 13... Nxc4 14. Qxc4 O-O 15. f4 c5 {1-0 (43) Kanka,T (1697)-Stehlik,J (1626) Slovakia 2016}) 14. Nf5 {[%emt 0:12:31]} Bxf5 {[%emt 0:03:18]} 15. exf5 {[%emt 0:02:43]} Qd8 {[%emt 0:04:01]} 16. Rad1 {[%emt 0:11:24]} Nxc4 {[%emt 0:03:16]} 17. Qxc4 {[%emt 0:00:29]} c6 {[%emt 0:04:09]} 18. Qb4 {[%emt 0:03:37]} Nd5 {[%emt 0:05:05]} 19. Qg4 {[%emt 0:04:09]} f6 {[%emt 0:01:33]} 20. Bf4 {[%emt 0:07:13]} Nxf4 {[%emt 0:00:29]} 21. Qxf4 {[%emt 0:00:12]} d5 {[%emt 0:00:05]} 22. h4 {[%emt 0:03:31]} Qa5 {[%emt 0:03:04]} 23. Re7 {[%emt 0:03:30]} Rf7 {[%emt 0:03:17]} 24. Rde1 {[%emt 0:02:00]} Qd8 {[%emt 0:01:24]} 25. R7e6 {[%emt 0:03:15]} Qd7 {[%emt 0:05:28]} 26. h5 {[%emt 0:01:43]} h6 {[%emt 0:01:10]} 27. Qb4 {[%emt 0:02:20]} b6 {[%emt 0:03:21]} 28. Re7 {[%emt 0:01:55]} Rxe7 {[%emt 0:00:16]} 29. Rxe7 {[%emt 0:00:16]} Qxf5 {[%emt 0:01:12]} 30. Qd6 {[%emt 0:00:18]} c5 {[%emt 0:04:39]} 31. Qc6 {[%emt 0:01:44]} Rf8 {[%emt 0:02:42]} 32. Qb7 {[%emt 0:00:13]} Qg5 {[%emt 0:00:37]} 33. f4 {[%emt 0:00:10]} Qg4 {[%emt 0:02:35]} 34. Qxd5+ {[%emt 0:00:09]} Kh8 {[%emt 0:00:19]} 35. Qd6 {[%emt 0:00:44]} Rg8 {[%emt 0:02:32]} 36. Rxa7 {[%emt 0:00:10]} Qxh5 {[%emt 0:00:20]} 37. Rb7 {[%emt 0:00:30]} Qe2 {[%emt 0:02:06]} 38. Rxb6 {[%emt 0:00:10]} c4 {[%emt 0:00:12]} 39. Rc6 {[%emt 0:00:18]} Qxa2 {[%emt 0:00:13]} 40. Qc7 {[%emt 0:00:03]} Qe2 {[%emt 0:02:14]} 41. Rxc4 {[%emt 0:00:08]} Re8 {[%emt 0:00:15]} 42. Rc1 {[%emt 0:00:23]} Qe3+ {[%emt 0:01:56]} 43. Kh2 $1 {[%emt 0:00:03]} Re7 {[%emt 0:00:50]} 44. Qc8+ {[%emt 0:00:06]} Re8 {[%emt 0:00:29]} 45. Qc7 {[%emt 0:00:03]} Kh7 {[%emt 0:00:33]} 46. Rf1 {[%emt 0:00:27]} Qe7 {[%emt 0:01:10]} 47. Qc2+ {[%emt 0:00:07]} Qe4 {[%emt 0:00:17]} 48. Qxe4+ {[%emt 0:00:12]} Rxe4 {[%emt 0:00:09]} 49. Rf3 {[%emt 0:00:09]} Kg6 {[%emt 0:00:34]} 50. g4 {[%emt 0:00:12]} Re2+ {[%emt 0:00:56]} 51. Kg3 {[%emt 0:00:02]} f5 {[%emt 0:00:30]} 52. Rb3 {[%emt 0:00:15]} fxg4 {[%emt 0:00:15]} 53. Kxg4 $15 {[%emt 0:00:15]} h5+ {[%emt 0:03:28]} 54. Kf3 {[%emt 0:00:01]} Re6 {[%emt 0:00:20]} 55. Ra3 {[%emt 0:00:05]} Rf6 {[%emt 0:00:21]} 56. Ra4 {[%emt 0:00:28]} Kh6 {[%emt 0:00:23]} 57. Kg3 {[%emt 0:00:12]} Rg6+ {[%emt 0:00:21]} 58. Kf3 {[%emt 0:00:09]} h4 {[%emt 0:00:39]} 59. Ra8 {[%emt 0:00:09]} Rg3+ {[%emt 0:00:23]} 60. Kf2 {[%emt 0:00:04]} Kh5 {[%emt 0:00:44]} 61. Rg8 {[%emt 0:00:12]} Rg6 {[%emt 0:01:18]} 62. Kf3 {[%emt 0:00:06]} Rg3+ {[%emt 0:00:31]} 63. Kf2 {[%emt 0:00:01]} g6 {[%emt 0:00:12]} 64. f5 {[%emt 0:00:04]} g5 {[%emt 0:00:32]} 65. f6 {[%emt 0:00:13]} Kg4 {[%emt 0:00:06]} 66. Rxg5+ {[%emt 0:00:18]} Kxg5 {[%emt 0:00:59]} 67. f7 Rg4 {[%emt 0:00:22]} 68. f8=Q {[%emt 0:00:04]} Rf4+ {[%emt 0:00:09]} 69. Qxf4+ {[%emt 0:00:03]} Kxf4 {[%emt 0:00:05]} 70. Kg2 Ke5 {[%emt 0:00:18]} 1/2-1/2

[Event "Gibraltar Amateurs A 2019"]
[Site "Caleta"]
[Date "2019.01.21"]
[Round "1"]
[White "Lane, Ryan"]
[Black "Deepak Kumar R"]
[Result "1/2-1/2"]
[ECO "B00"]
[WhiteElo "1851"]
[BlackElo "1843"]
[Annotator "NA"]
[PlyCount "53"]
[EventDate "2019.01.21"]
[EventType "swiss"]
[EventCountry "GGB"]
[SourceTitle "playchess.com"]
[Source "ChessBase"]
[SourceQuality "1"]
[TimeControl "6600+10"]

1. e4 {[%emt 0:00:00]} b6 {[%emt 0:00:27]} 2. d4 {[%emt 0:00:18]} Bb7 {[%emt 0:00:08]} 3. Nc3 {[%emt 0:00:05]} d6 {[%emt 0:01:00]} 4. Nf3 {[%emt 0:00:37]} e6 {[%emt 0:01:05]} 5. Bb5+ {[%emt 0:00:32] B00: Queen's Fianchetto Defence, Nimzowitsch Defence} (5. d5 e5 6. g4 h6 7. h4 g6 8. h5 g5 9. a4 Qc8 10. Bb5+ c6 11. dxc6 Nxc6 12. Nh2 a6 13. Bxc6+ Qxc6 {1-0 (58) Stukopin,A (2577)-Blatny,P (2392) Philadelphia 2017}) 5... c6 {[%emt 0:00:42]} 6. Ba4 {[%emt 0:00:05]} Nd7 {[%emt 0:00:20]} 7. O-O {[%emt 0:00:50]} Be7 {[%emt 0:00:03]} 8. Bf4 {[%emt 0:03:11]} Ngf6 $146 {[%emt 0:00:36]} ({Predecessor:} 8... b5 9. Bb3 b4 10. Nb1 a5 11. a4 {1-0 (58) Leplat,W-Groux,L Herlies 2002}) 9. Re1 {[%emt 0:01:33]} O-O {[%emt 0:00:09]} 10. Qe2 {[%emt 0:02:07]} a5 {[%emt 0:02:58]} 11. a3 {[%emt 0:03:08]} b5 {[%emt 0:06:17]} 12. Bb3 {[%emt 0:00:03]} a4 {[%emt 0:04:11]} 13. Ba2 {[%emt 0:00:09]} Ba6 {[%emt 0:03:05]} 14. Qd2 {[%emt 0:00:50]} d5 {[%emt 0:03:57]} 15. Rad1 {[%emt 0:07:27]} b4 {[%emt 0:04:42]} 16. axb4 {[%emt 0:05:24]} Bxb4 {[%emt 0:00:13]} 17. Bg5 {[%emt 0:02:11] [#]} (17. e5 $17 Ne4 18. Rxe4 dxe4 19. Ng5) 17... Qa5 $1 {[%emt 0:10:16]} 18. exd5 {[%emt 0:03:39]} cxd5 {[%emt 0:01:54]} 19. Qf4 {[%emt 0:07:27]} Bxc3 $19 {[%emt 0:09:05]} (19... a3 $142 20. Ne5 Rac8 21. Nxd5 exd5) 20. bxc3 {[%emt 0:00:07]} Qxc3 {[%emt 0:00:39]} 21. Ne5 {[%emt 0:07:48]} Nxe5 {[%emt 0:19:13]} 22. Qxe5 {[%emt 0:05:43]} Ne4 {[%emt 0:04:02]} 23. Bh4 {[%emt 0:01:19]} Qb2 {[%emt 0:00:33]} 24. Bb1 {[%emt 0:03:19]} Nc3 {[%emt 0:05:24]} 25. Bf6 {[%emt 0:18:45]} gxf6 {[%emt 0:14:47]} 26. Qxf6 {[%emt 0:00:10]} Nxd1 {[%emt 0:00:03]} 27. Rxd1 {[%emt 0:01:13]} 1/2-1/2

[Event "Gibraltar Amateurs A 2019"]
[Site "Caleta"]
[Date "2019.01.21"]
[Round "1"]
[White "Garcia-Blazquez Perez, Manuel"]
[Black "Haddock, Paul"]
[Result "1-0"]
[ECO "B76"]
[WhiteElo "1849"]
[BlackElo "1580"]
[Annotator "NA"]
[PlyCount "77"]
[EventDate "2019.01.21"]
[EventType "swiss"]
[EventCountry "GGB"]
[SourceTitle "playchess.com"]
[Source "ChessBase"]
[SourceQuality "1"]
[TimeControl "6600+10"]

1. e4 {[%emt 0:00:00]} c5 {[%emt 0:01:22]} 2. Nf3 {[%emt 0:00:01]} d6 {[%emt 0:00:18]} 3. d4 {[%emt 0:00:04]} cxd4 {[%emt 0:00:11]} 4. Nxd4 {[%emt 0:00:05]} Nf6 {[%emt 0:00:10]} 5. Nc3 {[%emt 0:00:06]} g6 {[%emt 0:00:33]} 6. Be3 {[%emt 0:00:05] LiveBook: 10049 Games} Bg7 {[%emt 0:01:41]} 7. f3 {[%emt 0:00:05]} Nc6 {[%emt 0:00:33]} 8. Qd2 {[%emt 0:00:54]} O-O {[%emt 0:01:07]} 9. O-O-O {[%emt 0:00:05]} Re8 {[%emt 0:06:57]} 10. Kb1 {[%emt 0:00:19] B76: Sicilian Dragon: Yugoslav Attack, 9 g4 and 9 0-0-0} (10. g4 a6 11. h4 h5 12. Nxc6 bxc6 13. e5 Nxg4 14. fxg4 Bxg4 15. Be2 Bxe2 16. Nxe2 Rb8 17. Rhg1 c5 18. Qd5 Qb6 {1-0 (48) Vdovin,V (2381)-Shabanov,D (2239) Moscow 2018}) 10... Bd7 {[%emt 0:07:50]} 11. g4 {[%emt 0:00:08]} Rc8 {[%emt 0:16:46]} 12. h4 {[%emt 0:00:12]} h5 {[%emt 0:10:11]} 13. Nxc6 $146 {[%emt 0:08:31]} ({Predecessor:} 13. gxh5 Nxh5 14. Nxc6 Bxc6 15. Bd4 Qa5 16. Bxg7 Nxg7 17. Bh3 Rc7 18. Bg4 e6 19. h5 gxh5 20. Bxh5 Nxh5 {0-1 (53) Sundin,S (1607)-Skovgaard,E (1764) Helsingor 2017}) 13... bxc6 {[%emt 0:15:55]} 14. Bh6 {[%emt 0:00:18]} Bh8 {[%emt 0:15:30]} 15. e5 {[%emt 0:04:40]} dxe5 {[%emt 0:06:22]} 16. gxh5 {[%emt 0:01:12]} Bf5 {[%emt 0:04:26]} 17. hxg6 {[%emt 0:11:38]} Qxd2 {[%emt 0:01:27]} 18. gxf7+ {[%emt 0:00:10]} Kxf7 {[%emt 0:00:37]} 19. Rxd2 {[%emt 0:01:02]} Red8 {[%emt 0:02:13]} 20. Rxd8 {[%emt 0:01:20]} Rxd8 {[%emt 0:00:08]} 21. Bc4+ {[%emt 0:01:49]} Nd5 {[%emt 0:02:45]} 22. Be3 {[%emt 0:03:42]} e6 {[%emt 0:02:36]} 23. Bxd5 {[%emt 0:02:50]} exd5 {[%emt 0:00:50]} 24. Bxa7 {[%emt 0:00:08]} Rg8 {[%emt 0:03:12]} 25. Rg1 {[%emt 0:00:45]} Rxg1+ {[%emt 0:00:24]} 26. Bxg1 {[%emt 0:00:10]} Kg6 {[%emt 0:01:44]} 27. a4 $18 {[%emt 0:00:30]} Bf6 {[%emt 0:00:33]} 28. Bf2 {[%emt 0:01:11]} Kh5 {[%emt 0:00:13]} 29. a5 {[%emt 0:00:06]} Bc8 {[%emt 0:00:28]} 30. Na4 {[%emt 0:02:34]} Bd8 {[%emt 0:01:28]} 31. b4 {[%emt 0:00:34]} Bb7 {[%emt 0:02:48]} 32. Nc5 {[%emt 0:00:10]} Ba8 {[%emt 0:00:15]} 33. c3 {[%emt 0:06:54]} Bxh4 {[%emt 0:00:15]} 34. Bg1 {[%emt 0:22:35]} Kg6 {[%emt 0:00:44]} 35. a6 {[%emt 0:00:38]} Be7 {[%emt 0:01:00]} 36. Nd7 {[%emt 0:00:34]} c5 {[%emt 0:00:43]} 37. Bxc5 {[%emt 0:02:45]} Bxc5 {[%emt 0:00:29]} 38. Nxc5 {[%emt 0:01:39]} Kf5 {[%emt 0:00:23]} 39. b5 {[%emt 0:00:25]} 1-0

[Event "Gibraltar Amateurs A 2019"]
[Site "Caleta"]
[Date "2019.01.21"]
[Round "1"]
[White "Carr, Jay"]
[Black "Naldrett, Geoffrey"]
[Result "1/2-1/2"]
[ECO "E08"]
[WhiteElo "1842"]
[BlackElo "1557"]
[Annotator "NA"]
[PlyCount "45"]
[EventDate "2019.01.21"]
[EventType "swiss"]
[EventCountry "GGB"]
[SourceTitle "playchess.com"]
[Source "ChessBase"]
[SourceQuality "1"]
[TimeControl "6600+10"]

1. c4 {[%emt 0:00:00]} e6 {[%emt 0:00:13]} 2. g3 {[%emt 0:00:00]} d5 {[%emt 0:00:37]} 3. Bg2 {[%emt 0:00:25]} Nf6 {[%emt 0:00:26]} 4. Nf3 {[%emt 0:00:20]} Be7 {[%emt 0:01:06]} 5. d4 {[%emt 0:00:19]} O-O {[%emt 0:00:41]} 6. O-O {[%emt 0:01:03]} c6 {[%emt 0:01:01]} 7. b3 {[%emt 0:03:41]} Nbd7 {[%emt 0:01:48]} 8. Bb2 {[%emt 0:00:15]} Ne4 {[%emt 0:06:28]} 9. Nfd2 {[%emt 0:05:29]} Nxd2 {[%emt 0:01:52]} 10. Nxd2 {[%emt 0:00:48]} Nf6 {[%emt 0:01:48]} 11. Qc2 {[%emt 0:03:49]} Rb8 {[%emt 0:02:57]} 12. Rad1 {[%emt 0:12:41]} Bd7 {[%emt 0:07:13]} 13. f3 {[%emt 0:17:31]} b5 {[%emt 0:04:31]} 14. e4 {[%emt 0:11:27]} bxc4 {[%emt 0:10:01]} 15. bxc4 {[%emt 0:00:43]} Qb6 {[%emt 0:06:49]} 16. Rb1 {[%emt 0:00:41]} Qa6 {[%emt 0:05:49]} 17. e5 {[%emt 0:02:51]} Ne8 {[%emt 0:01:26]} 18. Bc3 {[%emt 0:06:05]} Nc7 {[%emt 0:03:48]} 19. Rxb8 {[%emt 0:23:32]} Rxb8 {[%emt 0:00:17]} 20. Rb1 {[%emt 0:00:05]} Rxb1+ {[%emt 0:01:33]} 21. Qxb1 {[%emt 0:00:04]} Qb6 {[%emt 0:02:01]} 22. Qb3 {[%emt 0:06:03]} c5 {[%emt 0:03:14]} 23. Qxb6 {[%emt 0:02:00]} 1/2-1/2